[Event "Titled Tuesday Blitz March 29 Late 2022"]
[White "Naroditsky, Daniel"]
[Black "Khanin, Semen"]
[WhiteFideId "2026961"]
[BlackFideId "4111990"]
[WhiteElo "2608"]
[BlackElo "2442"]
[Result "1-0"]
[Round "04"]
[TimeControl "180+1"]
[Date "2022.03.29"]
[WhiteClock "0:00:05"]
[BlackClock "0:00:03"]

1. d4 {[%clk 0:03:00]}  Nf6 {[%clk 0:02:59]} 2. Bf4 {[%clk 0:03:00]}  b6 {[%clk 0:02:56]} 3. e3 {[%clk 0:02:59]}  Bb7 {[%clk 0:02:56]} 4. c4 {[%clk 0:03:00]}  g6 {[%clk 0:02:56]} 5. Nf3 {[%clk 0:03:00]}  Bg7 {[%clk 0:02:56]} 6. Bd3 {[%clk 0:03:01]}  d6 {[%clk 0:02:56]} 7. Nc3 {[%clk 0:03:00]}  Nbd7 {[%clk 0:02:57]} 8. O-O {[%clk 0:02:58]}  O-O {[%clk 0:02:57]} 9. e4 {[%clk 0:02:47]}  Nh5 {[%clk 0:02:52]} 10. Be3 {[%clk 0:02:43]}  e5 {[%clk 0:02:51]} 11. d5 {[%clk 0:02:44]}  h6 {[%clk 0:02:36]} 12. g3 {[%clk 0:02:41]}  Nc5 {[%clk 0:02:33]} 13. Bc2 {[%clk 0:02:40]}  a5 {[%clk 0:02:33]} 14. a3 {[%clk 0:02:40]}  Bc8 {[%clk 0:02:30]} 15. Nh4 {[%clk 0:02:16]}  Bh3 {[%clk 0:02:27]} 16. Re1 {[%clk 0:02:16]}  Nf4 {[%clk 0:02:12]} 17. Qd2 {[%clk 0:01:49]}  a4 {[%clk 0:02:03]} 18. Kh1 {[%clk 0:01:43]}  Kh7 {[%clk 0:01:51]} 19. Rg1 {[%clk 0:01:42]}  Nh5 {[%clk 0:01:36]} 20. Qe2 {[%clk 0:01:42]}  Qd7 {[%clk 0:01:33]} 21. Nf5 {[%clk 0:01:32]}  gxf5 {[%clk 0:01:31]} 22. exf5 {[%clk 0:01:16]}  Bxf5 {[%clk 0:00:38]} 23. Bxf5+ {[%clk 0:01:17]}  Qxf5 {[%clk 0:00:38]} 24. g4 {[%clk 0:01:16]}  Qd3 {[%clk 0:00:22]} 25. gxh5 {[%clk 0:01:12]}  Qxe2 {[%clk 0:00:22]} 26. Nxe2 {[%clk 0:01:13]}  f5 {[%clk 0:00:22]} 27. Rg6 {[%clk 0:01:09]}  Nd3 {[%clk 0:00:20]} 28. Rag1 {[%clk 0:01:08]}  Rf7 {[%clk 0:00:21]} 29. Ng3 {[%clk 0:00:48]}  f4 {[%clk 0:00:15]} 30. Nf5 {[%clk 0:00:48]}  Bf8 {[%clk 0:00:15]} 31. Nh4 {[%clk 0:00:39]}  fxe3 {[%clk 0:00:15]} 32. fxe3 {[%clk 0:00:40]}  Nf2+ {[%clk 0:00:15]} 33. Kg2 {[%clk 0:00:40]}  Ne4 {[%clk 0:00:14]} 34. Re6 {[%clk 0:00:30]}  Be7 {[%clk 0:00:12]} 35. Ng6 {[%clk 0:00:30]}  Bg5 {[%clk 0:00:12]} 36. h4 {[%clk 0:00:26]}  Bxe3 {[%clk 0:00:05]} 37. Re1 {[%clk 0:00:26]}  Rf2+ {[%clk 0:00:05]} 38. Kh3 {[%clk 0:00:19]}  Rf3+ {[%clk 0:00:05]} 39. Kg2 {[%clk 0:00:19]}  Rg3+ {[%clk 0:00:05]} 40. Kh2 {[%clk 0:00:20]}  Rf3 {[%clk 0:00:01]} 41. Re7+ {[%clk 0:00:17]}  Kg8 {[%clk 0:00:01]} 42. Kg2 {[%clk 0:00:18]}  Rg3+ {[%clk 0:00:02]} 43. Kh2 {[%clk 0:00:18]}  Bf4 {[%clk 0:00:02]} 44. Nxf4 {[%clk 0:00:13]}  exf4 {[%clk 0:00:02]} 45. R1xe4 {[%clk 0:00:11]}  Rf8 {[%clk 0:00:02]} 46. R4e6 {[%clk 0:00:04]}  Rg7 {[%clk 0:00:01]} 47. Rg6 {[%clk 0:00:04]}  Rxg6 {[%clk 0:00:01]} 48. hxg6 {[%clk 0:00:05]}  f3 {[%clk 0:00:02]} 49. Kg1 {[%clk 0:00:05]}  f2+ {[%clk 0:00:03]} 50. Kf1 {[%clk 0:00:06]}  Rf4 {[%clk 0:00:03]} 51. Rxc7 {[%clk 0:00:03]}  Rxh4 {[%clk 0:00:03]} 52. Kxf2 {[%clk 0:00:04]}  Rh2+ {[%clk 0:00:03]} 53. Kf3 {[%clk 0:00:02]}  Rxb2 {[%clk 0:00:04]} 54. Kf4 {[%clk 0:00:02]}  Rb3 {[%clk 0:00:04]} 55. Rb7 {[%clk 0:00:02]}  Rxa3 {[%clk 0:00:05]} 56. Rxb6 {[%clk 0:00:02]}  Rc3 {[%clk 0:00:05]} 57. Kf5 {[%clk 0:00:02]}  Rxc4 {[%clk 0:00:05]} 58. Rxd6 {[%clk 0:00:02]}  a3 {[%clk 0:00:05]} 59. Ra6 {[%clk 0:00:03]}  Rc3 {[%clk 0:00:04]} 60. Ra8+ {[%clk 0:00:03]}  Kg7 {[%clk 0:00:04]} 61. Ra7+ {[%clk 0:00:04]}  Kg8 {[%clk 0:00:04]} 62. d6 {[%clk 0:00:05]}  Rd3 {[%clk 0:00:03]} 63. Ke6 {[%clk 0:00:05]}  Re3+ {[%clk 0:00:01]} 64. Kf6 {[%clk 0:00:06]}  Rf3+ {[%clk 0:00:02]} 65. Ke6 {[%clk 0:00:07]}  Re3+ {[%clk 0:00:02]} 66. Kf5 {[%clk 0:00:08]}  Rd3 {[%clk 0:00:03]} 67. d7 {[%clk 0:00:04]}  a2 {[%clk 0:00:03]} 68. Ke6 {[%clk 0:00:04]}  Re3+ {[%clk 0:00:03]} 69. Kf6 {[%clk 0:00:04]}  Rd3 {[%clk 0:00:03]} 70. Ra8# {[%clk 0:00:05]} 1-0


[Site "https://www.chess.com"]

[Event "Titled Tuesday Blitz March 29 Late 2022"]
[White "Nazaretyan, Tigran"]
[Black "Fiol, Fabrice"]
[WhiteFideId "24162345"]
[BlackFideId "611670"]
[WhiteElo "2219"]
[BlackElo "2401"]
[Result "1-0"]
[Round "04"]
[TimeControl "180+1"]
[Date "2022.03.30"]
[WhiteClock "0:01:38"]
[BlackClock "0:01:10"]

1. d4 {[%clk 0:02:56]}  Nf6 {[%clk 0:02:58]} 2. c4 {[%clk 0:02:55]}  e6 {[%clk 0:02:56]} 3. Nf3 {[%clk 0:02:54]}  Bb4+ {[%clk 0:02:56]} 4. Bd2 {[%clk 0:02:51]}  Qe7 {[%clk 0:02:53]} 5. Nc3 {[%clk 0:02:48]}  O-O {[%clk 0:02:42]} 6. g3 {[%clk 0:02:45]}  Bxc3 {[%clk 0:02:39]} 7. Bxc3 {[%clk 0:02:44]}  Ne4 {[%clk 0:02:40]} 8. Rc1 {[%clk 0:02:44]}  Nxc3 {[%clk 0:02:40]} 9. Rxc3 {[%clk 0:02:44]}  d6 {[%clk 0:02:41]} 10. Bg2 {[%clk 0:02:43]}  e5 {[%clk 0:02:35]} 11. O-O {[%clk 0:02:36]}  a5 {[%clk 0:02:25]} 12. c5 {[%clk 0:02:32]}  exd4 {[%clk 0:02:13]} 13. cxd6 {[%clk 0:02:31]}  cxd6 {[%clk 0:02:00]} 14. Nxd4 {[%clk 0:02:26]}  Na6 {[%clk 0:02:00]} 15. Qd2 {[%clk 0:02:14]}  Nc5 {[%clk 0:01:53]} 16. Rd1 {[%clk 0:02:12]}  Rd8 {[%clk 0:01:48]} 17. Nb5 {[%clk 0:02:11]}  Bg4 {[%clk 0:01:44]} 18. h3 {[%clk 0:02:08]}  Qxe2 {[%clk 0:01:38]} 19. hxg4 {[%clk 0:02:05]}  Qxg4 {[%clk 0:01:26]} 20. Rxc5 {[%clk 0:01:59]}  Qxd1+ {[%clk 0:01:21]} 21. Qxd1 {[%clk 0:01:58]}  dxc5 {[%clk 0:01:22]} 22. Qc2 {[%clk 0:01:46]}  g6 {[%clk 0:01:22]} 23. Bxb7 {[%clk 0:01:45]}  Rab8 {[%clk 0:01:22]} 24. Bc6 {[%clk 0:01:45]}  Rb6 {[%clk 0:01:17]} 25. Qxc5 {[%clk 0:01:44]}  Rdb8 {[%clk 0:01:18]} 26. a4 {[%clk 0:01:43]}  Kg7 {[%clk 0:01:17]} 27. Qe5+ {[%clk 0:01:42]}  Kg8 {[%clk 0:01:16]} 28. Bd5 {[%clk 0:01:42]}  h5 {[%clk 0:01:12]} 29. Qe7 {[%clk 0:01:38]}  Rf8 {[%clk 0:01:11]} 30. Nd6 {[%clk 0:01:37]}  Rxb2 {[%clk 0:01:10]} 31. Bxf7+ {[%clk 0:01:37]}  Kh8 {[%clk 0:01:09]} 32. Qf6+ {[%clk 0:01:36]}  Kh7 {[%clk 0:01:10]} 33. Qxg6+ {[%clk 0:01:37]}  Kh8 {[%clk 0:01:10]} 34. Qh6# {[%clk 0:01:38]} 1-0


[Site "https://www.chess.com"]

[Event "Titled Tuesday Blitz March 29 Late 2022"]
[White "Pakleza, Zbigniew"]
[Black "Manelyuk, Daniil"]
[WhiteFideId "1119290"]
[BlackFideId "44173920"]
[WhiteElo "2467"]
[BlackElo "2222"]
[Result "1-0"]
[Round "04"]
[TimeControl "180+1"]
[Date "2022.03.30"]
[WhiteClock "0:00:19"]
[BlackClock "0:00:09"]

1. d4 {[%clk 0:03:00]}  Nf6 {[%clk 0:02:48]} 2. Nf3 {[%clk 0:03:00]}  c5 {[%clk 0:02:47]} 3. c3 {[%clk 0:03:00]}  b6 {[%clk 0:02:45]} 4. Bf4 {[%clk 0:03:00]}  Bb7 {[%clk 0:02:45]} 5. e3 {[%clk 0:03:00]}  g6 {[%clk 0:02:45]} 6. Bc4 {[%clk 0:03:00]}  Bg7 {[%clk 0:02:46]} 7. dxc5 {[%clk 0:02:59]}  bxc5 {[%clk 0:02:35]} 8. Qb3 {[%clk 0:02:59]}  Bxf3 {[%clk 0:02:33]} 9. Bxf7+ {[%clk 0:02:59]}  Kf8 {[%clk 0:02:32]} 10. gxf3 {[%clk 0:03:00]}  Nc6 {[%clk 0:02:14]} 11. Bc4 {[%clk 0:02:46]}  Na5 {[%clk 0:02:09]} 12. Qa4 {[%clk 0:02:47]}  Nxc4 {[%clk 0:02:06]} 13. Qxc4 {[%clk 0:02:48]}  Qb6 {[%clk 0:02:06]} 14. Qb3 {[%clk 0:02:39]}  Nh5 {[%clk 0:01:59]} 15. Bg3 {[%clk 0:02:25]}  Nxg3 {[%clk 0:01:44]} 16. hxg3 {[%clk 0:02:25]}  e6 {[%clk 0:01:38]} 17. Nd2 {[%clk 0:02:24]}  Ke7 {[%clk 0:01:36]} 18. Qxb6 {[%clk 0:01:45]}  axb6 {[%clk 0:01:35]} 19. Ke2 {[%clk 0:01:45]}  h5 {[%clk 0:01:31]} 20. f4 {[%clk 0:01:28]}  b5 {[%clk 0:01:21]} 21. Ne4 {[%clk 0:01:27]}  d6 {[%clk 0:01:13]} 22. Rhd1 {[%clk 0:01:23]}  Rhd8 {[%clk 0:01:08]} 23. a3 {[%clk 0:01:23]}  Rac8 {[%clk 0:00:57]} 24. Rd2 {[%clk 0:01:09]}  d5 {[%clk 0:00:54]} 25. Ng5 {[%clk 0:01:09]}  Ra8 {[%clk 0:00:49]} 26. Rc1 {[%clk 0:01:01]}  Rdc8 {[%clk 0:00:43]} 27. e4 {[%clk 0:00:54]}  d4 {[%clk 0:00:39]} 28. e5 {[%clk 0:00:55]}  dxc3 {[%clk 0:00:30]} 29. Rxc3 {[%clk 0:00:55]}  Bh6 {[%clk 0:00:23]} 30. Ne4 {[%clk 0:00:49]}  c4 {[%clk 0:00:23]} 31. Rc1 {[%clk 0:00:44]}  Rd8 {[%clk 0:00:20]} 32. Rcd1 {[%clk 0:00:38]}  Rxd2+ {[%clk 0:00:19]} 33. Rxd2 {[%clk 0:00:39]}  h4 {[%clk 0:00:19]} 34. Rd1 {[%clk 0:00:34]}  Rd8 {[%clk 0:00:16]} 35. Rxd8 {[%clk 0:00:30]}  Kxd8 {[%clk 0:00:17]} 36. Nd6 {[%clk 0:00:30]}  h3 {[%clk 0:00:15]} 37. Kf1 {[%clk 0:00:29]}  Bf8 {[%clk 0:00:12]} 38. Nxb5 {[%clk 0:00:28]}  Bc5 {[%clk 0:00:12]} 39. Kg1 {[%clk 0:00:23]}  Kd7 {[%clk 0:00:10]} 40. Nc3 {[%clk 0:00:19]}  Bd4 {[%clk 0:00:10]} 41. Nd1 {[%clk 0:00:19]}  Kc6 {[%clk 0:00:09]} 42. Kh2 {[%clk 0:00:19]}  Kd5 {[%clk 0:00:10]} 43. Kxh3 {[%clk 0:00:19]}  Ke4 {[%clk 0:00:10]} 44. a4 {[%clk 0:00:17]}  Kd3 {[%clk 0:00:10]} 45. a5 {[%clk 0:00:18]}  Kc2 {[%clk 0:00:10]} 46. Ne3+ {[%clk 0:00:18]}  Kb3 {[%clk 0:00:07]} 47. a6 {[%clk 0:00:17]}  Ba7 {[%clk 0:00:07]} 48. Kg4 {[%clk 0:00:17]}  Bb6 {[%clk 0:00:06]} 49. Kg5 {[%clk 0:00:17]}  Bxe3 {[%clk 0:00:05]} 50. fxe3 {[%clk 0:00:17]}  Kxb2 {[%clk 0:00:06]} 51. a7 {[%clk 0:00:18]}  c3 {[%clk 0:00:07]} 52. a8=Q {[%clk 0:00:19]}  c2 {[%clk 0:00:08]} 53. Qb7+ {[%clk 0:00:19]}  Kc3 {[%clk 0:00:08]} 54. Qc6+ {[%clk 0:00:19]}  Kd2 {[%clk 0:00:09]} 55. Kxg6 {[%clk 0:00:19]} 1-0


[Site "https://www.chess.com"]

[Event "Titled Tuesday Blitz March 29 Late 2022"]
[White "Przybylski, Wojciech"]
[Black "Kosteniuk, Alexandra"]
[WhiteFideId "1117599"]
[BlackFideId "4128125"]
[WhiteElo "2487"]
[BlackElo "2723"]
[Result "0-1"]
[Round "04"]
[TimeControl "180+1"]
[Date "2022.03.30"]
[WhiteClock "0:00:01"]
[BlackClock "0:00:11"]

1. e4 {[%clk 0:03:00]}  c6 {[%clk 0:02:59]} 2. d4 {[%clk 0:02:57]}  d5 {[%clk 0:02:57]} 3. exd5 {[%clk 0:02:56]}  cxd5 {[%clk 0:02:57]} 4. Bd3 {[%clk 0:02:56]}  Nc6 {[%clk 0:02:57]} 5. c3 {[%clk 0:02:56]}  Nf6 {[%clk 0:02:58]} 6. h3 {[%clk 0:02:56]}  g6 {[%clk 0:02:57]} 7. Nf3 {[%clk 0:02:55]}  Bf5 {[%clk 0:02:58]} 8. O-O {[%clk 0:02:54]}  Bxd3 {[%clk 0:02:55]} 9. Qxd3 {[%clk 0:02:54]}  Bg7 {[%clk 0:02:56]} 10. Bf4 {[%clk 0:02:52]}  O-O {[%clk 0:02:51]} 11. Nbd2 {[%clk 0:02:52]}  Ne8 {[%clk 0:02:42]} 12. Rfe1 {[%clk 0:02:51]}  Nd6 {[%clk 0:02:41]} 13. Ne5 {[%clk 0:02:43]}  Re8 {[%clk 0:02:37]} 14. Qf3 {[%clk 0:02:36]}  e6 {[%clk 0:02:11]} 15. Nb3 {[%clk 0:02:28]}  Ne4 {[%clk 0:02:00]} 16. Re2 {[%clk 0:02:26]}  Nxe5 {[%clk 0:01:54]} 17. Bxe5 {[%clk 0:02:26]}  f6 {[%clk 0:01:45]} 18. Bf4 {[%clk 0:02:20]}  a5 {[%clk 0:01:45]} 19. Nd2 {[%clk 0:02:17]}  f5 {[%clk 0:01:45]} 20. Qd3 {[%clk 0:02:08]}  g5 {[%clk 0:01:38]} 21. Be5 {[%clk 0:01:55]}  Bxe5 {[%clk 0:01:30]} 22. dxe5 {[%clk 0:01:56]}  a4 {[%clk 0:01:27]} 23. Rb1 {[%clk 0:01:32]}  Qc7 {[%clk 0:01:20]} 24. f3 {[%clk 0:01:26]}  Ng3 {[%clk 0:01:16]} 25. Ree1 {[%clk 0:01:21]}  Qc5+ {[%clk 0:01:14]} 26. Qe3 {[%clk 0:00:59]}  Qxe3+ {[%clk 0:01:12]} 27. Rxe3 {[%clk 0:01:00]}  f4 {[%clk 0:01:11]} 28. Rd3 {[%clk 0:01:00]}  b5 {[%clk 0:01:11]} 29. Nf1 {[%clk 0:00:50]}  Nf5 {[%clk 0:01:10]} 30. a3 {[%clk 0:00:49]}  Rec8 {[%clk 0:01:08]} 31. Rbd1 {[%clk 0:00:48]}  Kf7 {[%clk 0:01:07]} 32. Nh2 {[%clk 0:00:46]}  h5 {[%clk 0:01:07]} 33. Nf1 {[%clk 0:00:46]}  Nh4 {[%clk 0:01:07]} 34. Kf2 {[%clk 0:00:46]}  Kg6 {[%clk 0:01:03]} 35. Rd4 {[%clk 0:00:46]}  Kf5 {[%clk 0:01:02]} 36. Rb4 {[%clk 0:00:44]}  Rc5 {[%clk 0:01:01]} 37. Re1 {[%clk 0:00:43]}  Rb8 {[%clk 0:00:48]} 38. g4+ {[%clk 0:00:33]}  Kg6 {[%clk 0:00:42]} 39. Nd2 {[%clk 0:00:30]}  Kh6 {[%clk 0:00:32]} 40. Rd4 {[%clk 0:00:29]}  Ng6 {[%clk 0:00:30]} 41. Rb4 {[%clk 0:00:23]}  Ne7 {[%clk 0:00:30]} 42. Rd4 {[%clk 0:00:21]}  Nc6 {[%clk 0:00:31]} 43. Rd3 {[%clk 0:00:21]}  Kg6 {[%clk 0:00:30]} 44. Kg2 {[%clk 0:00:04]}  Na5 {[%clk 0:00:27]} 45. Rd4 {[%clk 0:00:04]}  Rc7 {[%clk 0:00:22]} 46. Re2 {[%clk 0:00:04]}  Nc6 {[%clk 0:00:20]} 47. Rd3 {[%clk 0:00:04]}  hxg4 {[%clk 0:00:20]} 48. fxg4 {[%clk 0:00:03]}  Rh7 {[%clk 0:00:16]} 49. Nf3 {[%clk 0:00:03]}  Na5 {[%clk 0:00:12]} 50. Nd4 {[%clk 0:00:03]}  Kf7 {[%clk 0:00:12]} 51. Nf3 {[%clk 0:00:02]}  Rg7 {[%clk 0:00:12]} 52. Nd4 {[%clk 0:00:02]}  Rb6 {[%clk 0:00:12]} 53. Rdd2 {[%clk 0:00:02]}  Nc4 {[%clk 0:00:12]} 54. Rd3 {[%clk 0:00:02]}  Ne3+ {[%clk 0:00:11]} 55. Rdxe3 {[%clk 0:00:02]}  fxe3 {[%clk 0:00:10]} 56. Rxe3 {[%clk 0:00:03]}  Ke7 {[%clk 0:00:11]} 57. Rf3 {[%clk 0:00:03]}  Rf7 {[%clk 0:00:11]} 58. Re3 {[%clk 0:00:03]}  Rf4 {[%clk 0:00:11]} 59. Re2 {[%clk 0:00:03]}  Kd7 {[%clk 0:00:12]} 60. Nf3 {[%clk 0:00:02]}  Rb8 {[%clk 0:00:09]} 61. Nxg5 {[%clk 0:00:02]}  Rg8 {[%clk 0:00:09]} 62. Nf3 {[%clk 0:00:02]}  Ke7 {[%clk 0:00:09]} 63. Nd4 {[%clk 0:00:02]}  Rg5 {[%clk 0:00:08]} 64. Kg3 {[%clk 0:00:02]}  Rf1 {[%clk 0:00:07]} 65. Kg2 {[%clk 0:00:01]}  Rb1 {[%clk 0:00:06]} 66. Nf3 {[%clk 0:00:02]}  Rg8 {[%clk 0:00:06]} 67. Kg3 {[%clk 0:00:02]}  Rh8 {[%clk 0:00:05]} 68. Re3 {[%clk 0:00:02]}  Rxb2 {[%clk 0:00:06]} 69. Nd4 {[%clk 0:00:03]}  Ra2 {[%clk 0:00:05]} 70. g5 {[%clk 0:00:03]}  Rxa3 {[%clk 0:00:05]} 71. h4 {[%clk 0:00:03]}  Ra1 {[%clk 0:00:05]} 72. Re2 {[%clk 0:00:03]}  a3 {[%clk 0:00:06]} 73. Nf3 {[%clk 0:00:03]}  a2 {[%clk 0:00:06]} 74. Kg2 {[%clk 0:00:03]}  Rg1+ {[%clk 0:00:06]} 75. Nxg1 {[%clk 0:00:02]}  a1=Q {[%clk 0:00:07]} 76. Nf3 {[%clk 0:00:02]}  Qxc3 {[%clk 0:00:07]} 77. Rf2 {[%clk 0:00:02]}  b4 {[%clk 0:00:08]} 78. g6 {[%clk 0:00:02]}  b3 {[%clk 0:00:08]} 79. Ng5 {[%clk 0:00:02]}  b2 {[%clk 0:00:08]} 80. Rf7+ {[%clk 0:00:02]}  Ke8 {[%clk 0:00:08]} 81. g7 {[%clk 0:00:03]}  Rg8 {[%clk 0:00:08]} 82. Rf6 {[%clk 0:00:02]}  Qd2+ {[%clk 0:00:08]} 83. Kg3 {[%clk 0:00:02]}  Qd3+ {[%clk 0:00:08]} 84. Kg4 {[%clk 0:00:03]}  Qe2+ {[%clk 0:00:08]} 85. Kg3 {[%clk 0:00:03]}  Qe1+ {[%clk 0:00:09]} 86. Kg4 {[%clk 0:00:03]}  Qg1+ {[%clk 0:00:09]} 87. Kh5 {[%clk 0:00:03]}  Kd7 {[%clk 0:00:09]} 88. Rf7+ {[%clk 0:00:03]}  Kc6 {[%clk 0:00:10]} 89. Rf8 {[%clk 0:00:03]}  Rxg7 {[%clk 0:00:09]} 90. Rc8+ {[%clk 0:00:02]}  Kb7 {[%clk 0:00:10]} 91. Rc3 {[%clk 0:00:02]}  Rxg5+ {[%clk 0:00:10]} 92. hxg5 {[%clk 0:00:02]}  b1=Q {[%clk 0:00:11]} 93. Rb3+ {[%clk 0:00:01]}  Qxb3 {[%clk 0:00:11]} 0-1


[Site "https://www.chess.com"]

[Event "Titled Tuesday Blitz March 29 Late 2022"]
[White "Rabineau, Clement"]
[Black "Srinath, Rao S.V."]
[WhiteFideId "628891"]
[BlackFideId "5028876"]
[WhiteElo "2237"]
[BlackElo "2181"]
[Result "0-1"]
[Round "04"]
[TimeControl "180+1"]
[Date "2022.03.30"]
[WhiteClock "0:00:11"]
[BlackClock "0:01:30"]

1. e4 {[%clk 0:03:00]}  e6 {[%clk 0:02:56]} 2. d4 {[%clk 0:03:00]}  d5 {[%clk 0:02:56]} 3. exd5 {[%clk 0:03:01]}  exd5 {[%clk 0:02:56]} 4. Bd3 {[%clk 0:03:02]}  Nc6 {[%clk 0:02:56]} 5. c3 {[%clk 0:03:02]}  Bd6 {[%clk 0:02:56]} 6. Qf3 {[%clk 0:03:02]}  Nge7 {[%clk 0:02:51]} 7. Ne2 {[%clk 0:03:01]}  Be6 {[%clk 0:02:45]} 8. Bf4 {[%clk 0:03:01]}  Qd7 {[%clk 0:02:43]} 9. Bxd6 {[%clk 0:02:59]}  Qxd6 {[%clk 0:02:44]} 10. Qg3 {[%clk 0:03:00]}  Qxg3 {[%clk 0:02:44]} 11. hxg3 {[%clk 0:03:01]}  Bf5 {[%clk 0:02:42]} 12. Kd2 {[%clk 0:02:55]}  Kd7 {[%clk 0:02:41]} 13. f3 {[%clk 0:02:54]}  h5 {[%clk 0:02:38]} 14. Na3 {[%clk 0:02:49]}  Bxd3 {[%clk 0:02:38]} 15. Kxd3 {[%clk 0:02:49]}  Rae8 {[%clk 0:02:37]} 16. Nc2 {[%clk 0:02:48]}  Nf5 {[%clk 0:02:37]} 17. Rhe1 {[%clk 0:02:26]}  Rh6 {[%clk 0:02:26]} 18. Nf4 {[%clk 0:02:19]}  Rxe1 {[%clk 0:02:23]} 19. Rxe1 {[%clk 0:02:19]}  Nxg3 {[%clk 0:02:16]} 20. Nxd5 {[%clk 0:02:17]}  h4 {[%clk 0:02:15]} 21. b4 {[%clk 0:01:58]}  a6 {[%clk 0:02:10]} 22. a4 {[%clk 0:01:58]}  b5 {[%clk 0:02:09]} 23. axb5 {[%clk 0:01:55]}  axb5 {[%clk 0:02:09]} 24. Na3 {[%clk 0:01:49]}  Rh5 {[%clk 0:02:09]} 25. Nf4 {[%clk 0:01:32]}  Rf5 {[%clk 0:02:08]} 26. Ne2 {[%clk 0:01:29]}  Nh5 {[%clk 0:02:01]} 27. Rh1 {[%clk 0:01:07]}  g5 {[%clk 0:01:59]} 28. Ke4 {[%clk 0:00:58]}  Ne7 {[%clk 0:01:56]} 29. g4 {[%clk 0:00:44]}  Nf6+ {[%clk 0:01:54]} 30. Ke3 {[%clk 0:00:40]}  Ned5+ {[%clk 0:01:53]} 31. Kd2 {[%clk 0:00:34]}  Rxf3 {[%clk 0:01:52]} 32. Nxb5 {[%clk 0:00:34]}  Nxg4 {[%clk 0:01:41]} 33. Rg1 {[%clk 0:00:16]}  f5 {[%clk 0:01:41]} 34. Nc1 {[%clk 0:00:11]}  h3 {[%clk 0:01:39]} 35. Nd3 {[%clk 0:00:11]}  h2 {[%clk 0:01:38]} 36. Rh1 {[%clk 0:00:11]}  Rxd3+ {[%clk 0:01:30]} 0-1


[Site "https://www.chess.com"]

[Event "Titled Tuesday Blitz March 29 Late 2022"]
[White "Ricaurte Lopez, Juan Carlos"]
[Black "Zhukov, Maksim"]
[WhiteFideId "3600327"]
[BlackFideId "34181790"]
[WhiteElo "2209"]
[BlackElo "1978"]
[Result "1/2-1/2"]
[Round "04"]
[TimeControl "180+1"]
[Date "2022.03.30"]
[WhiteClock "0:01:01"]
[BlackClock "0:00:29"]

1. e4 {[%clk 0:03:00]}  c6 {[%clk 0:02:59]} 2. d4 {[%clk 0:02:59]}  d5 {[%clk 0:03:00]} 3. exd5 {[%clk 0:02:58]}  cxd5 {[%clk 0:03:01]} 4. Nf3 {[%clk 0:02:56]}  Nc6 {[%clk 0:03:01]} 5. c4 {[%clk 0:02:53]}  Nf6 {[%clk 0:03:01]} 6. Nc3 {[%clk 0:02:51]}  g6 {[%clk 0:03:00]} 7. cxd5 {[%clk 0:02:46]}  Nxd5 {[%clk 0:03:01]} 8. Bb5 {[%clk 0:02:43]}  Bg7 {[%clk 0:02:46]} 9. Ne5 {[%clk 0:02:37]}  Nxc3 {[%clk 0:02:32]} 10. bxc3 {[%clk 0:02:36]}  Bxe5 {[%clk 0:02:29]} 11. dxe5 {[%clk 0:02:32]}  Qxd1+ {[%clk 0:02:30]} 12. Kxd1 {[%clk 0:02:31]}  O-O {[%clk 0:02:30]} 13. f4 {[%clk 0:02:28]}  Rd8+ {[%clk 0:02:23]} 14. Bd2 {[%clk 0:02:15]}  Na5 {[%clk 0:02:17]} 15. Ke2 {[%clk 0:02:00]}  Bg4+ {[%clk 0:02:16]} 16. Ke3 {[%clk 0:01:56]}  a6 {[%clk 0:02:13]} 17. Be2 {[%clk 0:01:52]}  Bxe2 {[%clk 0:01:53]} 18. Kxe2 {[%clk 0:01:50]}  Nc4 {[%clk 0:01:53]} 19. Be3 {[%clk 0:01:41]}  Kf8 {[%clk 0:01:39]} 20. Rhd1 {[%clk 0:01:39]}  Ke8 {[%clk 0:01:37]} 21. Rd4 {[%clk 0:01:31]}  b5 {[%clk 0:01:29]} 22. a4 {[%clk 0:01:23]}  Nb2 {[%clk 0:01:01]} 23. axb5 {[%clk 0:01:08]}  axb5 {[%clk 0:00:56]} 24. Rxd8+ {[%clk 0:01:07]}  Rxd8 {[%clk 0:00:55]} 25. Ra7 {[%clk 0:01:07]}  Rd7 {[%clk 0:00:29]} 26. Ra8+ {[%clk 0:01:02]}  Rd8 {[%clk 0:00:29]} 27. Ra7 {[%clk 0:01:01]}  Rd7 {[%clk 0:00:29]} 28. Ra8+ {[%clk 0:01:01]}  Rd8 {[%clk 0:00:29]} 29. Ra7 {[%clk 0:01:01]} 1/2-1/2


[Site "https://www.chess.com"]

[Event "Titled Tuesday Blitz March 29 Late 2022"]
[White "Ronka, Erik"]
[Black "Rozman, Levy"]
[WhiteFideId "505080"]
[BlackFideId "2039877"]
[WhiteElo "2467"]
[BlackElo "2710"]
[Result "0-1"]
[Round "04"]
[TimeControl "180+1"]
[Date "2022.03.30"]
[WhiteClock "0:00:09"]
[BlackClock "0:01:30"]

1. e4 {[%clk 0:03:00]}  d5 {[%clk 0:02:59]} 2. exd5 {[%clk 0:03:00]}  Nf6 {[%clk 0:02:59]} 3. d4 {[%clk 0:03:00]}  Bg4 {[%clk 0:03:00]} 4. Bb5+ {[%clk 0:02:56]}  c6 {[%clk 0:03:00]} 5. dxc6 {[%clk 0:02:54]}  Nxc6 {[%clk 0:03:01]} 6. Ne2 {[%clk 0:02:28]}  Qa5+ {[%clk 0:02:59]} 7. Nbc3 {[%clk 0:02:28]}  O-O-O {[%clk 0:02:59]} 8. Bxc6 {[%clk 0:02:28]}  bxc6 {[%clk 0:02:59]} 9. f3 {[%clk 0:02:21]}  Bf5 {[%clk 0:02:56]} 10. O-O {[%clk 0:02:14]}  e5 {[%clk 0:02:54]} 11. Bd2 {[%clk 0:01:32]}  exd4 {[%clk 0:02:51]} 12. Ne4 {[%clk 0:01:31]}  Qb6 {[%clk 0:02:43]} 13. Kh1 {[%clk 0:01:24]}  Bxe4 {[%clk 0:02:37]} 14. fxe4 {[%clk 0:01:25]}  Nxe4 {[%clk 0:02:37]} 15. Qe1 {[%clk 0:01:19]}  d3 {[%clk 0:02:26]} 16. Ba5 {[%clk 0:01:07]}  d2 {[%clk 0:01:52]} 17. Qh4 {[%clk 0:00:34]}  Qxa5 {[%clk 0:01:46]} 18. Qxe4 {[%clk 0:00:34]}  Qd5 {[%clk 0:01:38]} 19. Qg4+ {[%clk 0:00:28]}  f5 {[%clk 0:01:32]} 20. Rxf5 {[%clk 0:00:13]}  d1=Q+ {[%clk 0:01:32]} 21. Rf1+ {[%clk 0:00:13]}  Qd7 {[%clk 0:01:32]} 22. Qa4 {[%clk 0:00:09]}  Qxe2 {[%clk 0:01:30]} 0-1


[Site "https://www.chess.com"]